bitfinex-derivatives/quotes_BTCF0:USTF0_20250724
["timestamp","ask_amount","ask_price","bid_price","bid_amount"]
[1753360404116,1.1428718,118510.0,118500.0,0.5394725]
[1753360405209,1.42423581,118510.0,118500.0,0.5394725]
[1753360405711,1.42423581,118510.0,118500.0,0.1786725]
[1753360406718,1.1428718,118510.0,118500.0,0.1786725]
[1753360406904,1.42423581,118510.0,118500.0,0.1786725]
[1753360408518,1.1428718,118510.0,118500.0,0.1786725]
[1753360408712,0.83103581,118510.0,118500.0,0.5394725]
[1753360408918,1.1429118,118510.0,118500.0,0.5394725]
[1753360410017,0.5496718,118510.0,118500.0,0.5394725]
[1753360410214,0.381,118510.0,118500.0,0.82083651]
[1753360410515,0.001,118510.0,118500.0,1.17083651]
[1753360410820,0.5942,118510.0,118500.0,1.17083651]
[1753360411012,0.001,118510.0,118500.0,1.17083651]
[1753360411213,0.59424,118510.0,118500.0,1.17083651]
[1753360411707,0.59424,118510.0,118500.0,0.8894725]
[1753360411913,0.7629118,118510.0,118500.0,0.6594725]
[1753360412112,0.59424,118510.0,118500.0,0.5394725]
[1753360412521,0.59424,118510.0,118500.0,0.82083651]
[1753360412721,0.59424,118510.0,118500.0,0.84083651]
[1753360413827,0.001,118510.0,118500.0,1.15083651]
[1753360414025,0.5942,118510.0,118500.0,1.15083651]
[1753360415422,0.001,118510.0,118500.0,1.15083651]
[1753360415622,0.59416,118510.0,118500.0,0.96083651]
[1753360415826,0.59416,118510.0,118500.0,1.17083651]
[1753360416431,0.59416,118510.0,118500.0,0.98083651]
[1753360416732,0.59416,118510.0,118500.0,0.99083651]
[1753360417033,0.5942,118510.0,118500.0,1.1697685]
[1753360418219,0.59416,118510.0,118500.0,1.1697685]
[1753360418635,0.7628318,118510.0,118500.0,1.1697685]
[1753360418823,0.7628318,118510.0,118500.0,0.9697685]
[1753360419023,0.7628318,118510.0,118500.0,1.1497685]
[1753360419325,0.7628318,118510.0,118500.0,0.9597685]
[1753360419525,0.7628318,118510.0,118500.0,1.2197685]
[1753360419732,0.7628318,118510.0,118500.0,0.8797685]
[1753360420030,0.7628318,118510.0,118500.0,0.59840449]
[1753360420226,1.36419581,118510.0,118500.0,0.55840449]
[1753360420632,1.36419581,118510.0,118500.0,0.38973199]
[1753360421136,1.36419581,118510.0,118500.0,0.02893199]
[1753360422127,1.36419581,118510.0,118500.0,0.19761799]
[1753360422328,1.36419581,118510.0,118500.0,0.02893199]
[1753360422731,1.36419581,118510.0,118500.0,0.02393199]
[1753360422932,1.36919581,118510.0,118500.0,0.18861799]
[1753360423944,1.0878318,118510.0,118500.0,0.18861799]
[1753360424737,0.1746718,118510.0,118500.0,0.18861799]
[1753360424943,0.006,118510.0,118500.0,1.210782]
[1753360425131,0.59908,118510.0,118500.0,1.210782]
[1753360425839,0.006,118510.0,118500.0,1.210782]
[1753360426138,0.59308,118530.0,118520.0,0.2108196]
[1753360426335,1.419816,118550.0,118540.0,0.1686291]
[1753360426540,2.21588152,118550.0,118540.0,0.5294291]
[1753360426730,2.08968201,118550.0,118540.0,0.5294291]
[1753360426929,2.21670024,118550.0,118540.0,0.5294291]
[1753360428646,2.21870024,118550.0,118540.0,0.5304291]
[1753360428853,2.21970024,118550.0,118540.0,0.5304291]
[1753360429347,2.20075873,118550.0,118540.0,0.5304291]
[1753360430244,3.12078165,118550.0,118540.0,0.1696291]
[1753360430438,2.81078165,118550.0,118540.0,0.1696291]
[1753360430643,3.14078165,118550.0,118540.0,0.001]
[1753360431949,3.15078165,118550.0,118540.0,0.001]
[1753360432248,2.81078165,118550.0,118540.0,0.001]
[1753360432449,2.98078165,118550.0,118540.0,0.001]
[1753360432647,3.19078165,118550.0,118540.0,0.001]
[1753360433437,2.95078165,118550.0,118540.0,0.1696291]
[1753360433641,2.60155873,118550.0,118540.0,0.1696291]
[1753360433948,2.93181959,118550.0,118540.0,0.1696291]
[1753360435650,2.60155873,118550.0,118540.0,0.1696291]
[1753360435852,2.95077906,118550.0,118540.0,0.1696291]
[1753360437444,3.18077906,118550.0,118540.0,0.1696291]
[1753360437746,2.93077906,118550.0,118540.0,0.1696291]
[1753360438051,2.94077906,118550.0,118540.0,0.1696291]
[1753360438251,3.17077906,118550.0,118540.0,0.1696291]
[1753360438656,2.81077906,118550.0,118540.0,0.1696291]
[1753360438845,3.17077906,118550.0,118540.0,0.1696291]
[1753360440954,3.17077906,118550.0,118540.0,0.001]
[1753360442155,3.17077906,118550.0,118540.0,0.1696291]
[1753360443356,3.15181959,118550.0,118540.0,0.1696291]
[1753360445357,2.46075873,118550.0,118540.0,0.1696291]
[1753360446056,2.19039873,118550.0,118540.0,0.1696291]
[1753360446951,2.75065959,118550.0,118540.0,0.001]
[1753360447155,2.70232932,118550.0,118540.0,0.001]
[1753360447455,3.06312932,118550.0,118540.0,0.001]
[1753360448559,3.06312932,118550.0,118540.0,0.1696291]
[1753360449264,3.06312932,118550.0,118540.0,0.001]
[1753360450864,0.1686291,118540.0,118530.0,0.03471]
[1753360451060,1.14135969,118540.0,118530.0,0.03471]
[1753360451256,1.268526,118540.0,118530.0,0.03471]
[1753360452663,1.269526,118540.0,118530.0,0.03471]
[1753360453567,1.29136917,118540.0,118530.0,0.03471]
[1753360453766,1.29536917,118540.0,118530.0,0.03571]
[1753360456668,1.29536917,118540.0,118530.0,0.2043533]
[1753360457070,1.29536917,118540.0,118530.0,0.03571]
[1753360458161,1.29537017,118540.0,118530.0,0.03571]
[1753360458357,1.29537017,118540.0,118530.0,0.2273833]
[1753360458759,1.29537017,118540.0,118530.0,0.2565733]
[1753360459268,1.276526,118540.0,118530.0,0.2565733]
[1753360459867,1.276526,118540.0,118530.0,0.2912633]
[1753360460067,1.276526,118540.0,118530.0,0.3065133]
[1753360460268,1.276526,118540.0,118530.0,0.3297533]
[1753360461065,1.276526,118540.0,118530.0,0.2950633]
[1753360461269,1.276526,118540.0,118530.0,0.2565733]
[1753360461470,1.276526,118540.0,118530.0,0.23915505]
[1753360461768,1.276526,118540.0,118530.0,0.07051175]
[1753360462970,1.276526,118540.0,118530.0,0.05883175]
[1753360464564,1.276526,118540.0,118530.0,0.22747505]
[1753360464960,0.99459541,118540.0,118530.0,0.22747505]
[1753360465160,1.276526,118540.0,118530.0,0.22747505]
[1753360465361,1.276526,118540.0,118530.0,0.05883175]
[1753360465561,1.276526,118540.0,118530.0,0.22747505]
[1753360466871,1.276526,118540.0,118530.0,0.05883175]
[1753360469574,1.276526,118540.0,118530.0,0.22747505]
[1753360470176,1.276526,118540.0,118530.0,0.24481505]
[1753360470371,1.276526,118540.0,118530.0,0.07617175]
[1753360471379,1.276526,118540.0,118530.0,0.24481505]
[1753360471575,1.276526,118540.0,118530.0,0.22139505]
[1753360471977,1.276526,118540.0,118530.0,0.05275175]
[1753360474081,1.276526,118540.0,118530.0,0.08746175]
[1753360475475,1.276526,118540.0,118530.0,0.07012175]
[1753360475779,1.29537915,118540.0,118530.0,0.07012175]
[1753360476776,1.29537915,118540.0,118530.0,0.05883175]
[1753360477082,1.29537915,118540.0,118530.0,0.03580175]
[1753360481486,1.29539712,118540.0,118530.0,0.03580175]
[1753360485291,0.1686575,118520.0,118510.0,0.27029497]
[1753360485489,1.37286809,118520.0,118510.0,0.2587698]
[1753360485792,1.37286809,118520.0,118510.0,0.35364497]
[1753360486194,1.04286809,118520.0,118510.0,0.35364497]
[1753360486491,1.04586809,118520.0,118510.0,0.35464497]
[1753360486992,1.06586809,118520.0,118510.0,0.35464497]
[1753360487189,1.37686809,118520.0,118510.0,0.35464497]
[1753360487488,1.73766809,118520.0,118510.0,0.16380517]
[1753360487690,1.71766809,118520.0,118510.0,0.2718517]
[1753360488187,1.74766809,118520.0,118510.0,0.042]
[1753360488392,1.87489239,118520.0,118510.0,0.02466]
[1753360488785,1.87489239,118520.0,118510.0,0.1933317]
[1753360489291,1.87489239,118520.0,118510.0,0.2106717]
[1753360490592,1.87489239,118520.0,118510.0,0.2219617]
[1753360490979,1.87489239,118520.0,118510.0,0.05329]
[1753360491190,1.87489239,118520.0,118510.0,0.2219617]
[1753360491791,1.8842043,118520.0,118510.0,0.2219617]
[1753360491996,1.87489239,118520.0,118510.0,0.2219617]
[1753360492695,1.87489239,118520.0,118510.0,0.05329]
[1753360493184,1.87489239,118520.0,118510.0,0.2219617]
[1753360493385,1.87489239,118520.0,118510.0,0.2376017]
[1753360493689,1.87489239,118520.0,118510.0,0.2940217]
[1753360500395,1.0006818,118520.0,118510.0,0.2940217]
[1753360500695,0.004,118520.0,118510.0,1.56737746]
[1753360500894,1.3355035,118550.0,118540.0,0.290929]
[1753360501198,2.05371814,118550.0,118540.0,0.290929]
[1753360501399,2.05371814,118550.0,118540.0,0.57285959]
[1753360501591,2.33564873,118550.0,118540.0,0.290929]
[1753360502391,2.34364873,118550.0,118540.0,0.291929]
[1753360503096,2.34764873,118550.0,118540.0,0.291929]
[1753360503800,2.34364873,118550.0,118540.0,0.291929]
[1753360503998,2.33564873,118550.0,118540.0,0.290929]
[1753360504293,2.33864873,118550.0,118540.0,0.290929]
[1753360504989,2.35864873,118550.0,118540.0,0.290929]
[1753360505902,2.71864873,118550.0,118540.0,0.1223]
[1753360506196,2.35864873,118550.0,118540.0,0.1223]
[1753360506598,2.35864873,118550.0,118540.0,0.2909291]
[1753360506799,2.35864873,118550.0,118540.0,0.1223]
[1753360506999,2.35864873,118550.0,118540.0,0.2909291]
[1753360507396,2.35864873,118550.0,118540.0,0.1223]
[1753360508498,2.65864873,118550.0,118540.0,0.1223]
[1753360508696,2.65864873,118550.0,118540.0,0.08941]
[1753360508888,2.65864873,118550.0,118540.0,0.025]
[1753360509399,2.65864873,118550.0,118540.0,0.05182]
[1753360509600,2.65864873,118550.0,118540.0,0.2204491]
[1753360509796,2.65864873,118550.0,118540.0,0.2909291]
[1753360510103,3.01944873,118550.0,118540.0,0.1223]
[1753360510397,3.01944873,118550.0,118540.0,0.2909291]
[1753360510604,2.69944873,118550.0,118540.0,0.1223]
[1753360510793,3.01944873,118550.0,118540.0,0.2909291]
[1753360510993,3.01944873,118550.0,118540.0,0.1223]
[1753360511190,3.01944873,118550.0,118540.0,0.2909291]
[1753360512807,2.65864873,118550.0,118540.0,0.2909291]
[1753360513399,2.37671814,118550.0,118540.0,0.2909291]
[1753360513599,2.65864873,118550.0,118540.0,0.2909291]
[1753360513800,2.33840873,118550.0,118540.0,0.2909291]
[1753360514194,2.05647814,118550.0,118540.0,0.2909291]
[1753360514399,2.33956974,118550.0,118540.0,0.2909291]
[1753360515404,2.71956974,118550.0,118540.0,0.025]
[1753360515603,3.08036974,118550.0,118540.0,0.025]
[1753360515800,0.1686291,118540.0,118530.0,0.08471]
[1753360516001,0.83135969,118540.0,118530.0,0.05182]
[1753360516201,1.25724293,118540.0,118530.0,0.025]
[1753360516399,1.25724293,118540.0,118520.0,0.025]
[1753360516400,0.1686433,118530.0,118520.0,0.025]
[1753360516601,1.74625389,118530.0,118520.0,0.1936575]
[1753360516798,1.76625389,118530.0,118520.0,0.025]
[1753360516999,1.77625389,118530.0,118520.0,0.1936575]
[1753360517196,1.40625389,118530.0,118520.0,0.1936575]
[1753360517407,1.7574149,118530.0,118520.0,0.1936575]
[1753360517607,1.7574149,118530.0,118520.0,0.2204775]
[1753360517808,1.7574149,118530.0,118520.0,0.2214775]
[1753360518113,1.7574149,118530.0,118520.0,0.05382]
[1753360518608,1.7604149,118530.0,118520.0,0.027]
[1753360519203,2.1687547,118530.0,118520.0,0.002]
[1753360519399,2.1687547,118530.0,118520.0,1e-07]
[1753360519699,2.1707547,118530.0,118520.0,1e-07]
[1753360520104,2.17987547,118530.0,118520.0,1e-07]
[1753360522908,2.34861947,118530.0,118520.0,1e-07]
[1753360523116,0.168686,118500.0,118490.0,0.025]
[1753360523413,1.91653435,118500.0,118490.0,0.025]
[1753360524414,1.91653435,118500.0,118490.0,0.026]
[1753360524612,1.98294175,118500.0,118490.0,0.1947002]
[1753360524916,1.98286175,118500.0,118490.0,0.2215202]
[1753360525218,1.98286175,118500.0,118490.0,0.2920002]
[1753360526013,1.98286175,118500.0,118490.0,0.1233]
[1753360526215,1.98286175,118500.0,118490.0,0.09041]
[1753360526413,1.98286175,118500.0,118490.0,0.05282]
[1753360526609,1.98286175,118500.0,118490.0,0.2215202]
[1753360526610,1.70093116,118500.0,118490.0,0.2215202]
[1753360526807,1.98286175,118500.0,118490.0,0.2052402]
[1753360527002,1.98286175,118500.0,118490.0,0.05241]
[1753360527515,1.98286175,118500.0,118490.0,0.2211102]
[1753360527910,0.1687002,118490.0,118480.0,0.02362]
[1753360528113,1.13143079,118490.0,118480.0,0.10064]
[1753360528623,1.1325918,118490.0,118480.0,0.2919044]
[1753360528806,1.7305918,118490.0,118480.0,0.2919044]
[1753360529210,1.7305918,118490.0,118480.0,0.12319]
[1753360529415,1.44866121,118490.0,118480.0,0.12319]
[1753360529617,1.7305918,118490.0,118480.0,0.14198439]
[1753360530118,1.7305918,118490.0,118480.0,0.01879439]
[1753360530617,1.85714072,118490.0,118480.0,0.01879439]
[1753360530818,1.85714072,118490.0,118480.0,0.02079439]
[1753360531215,1.90714072,118490.0,118480.0,0.04441439]
[1753360531710,1.88714072,118490.0,118480.0,0.04441439]
[1753360531910,1.53714072,118490.0,118480.0,0.04441439]
[1753360532115,1.53714072,118490.0,118480.0,0.27374879]
[1753360532116,1.56714072,118490.0,118480.0,0.27374879]
[1753360532420,1.56702072,118490.0,118480.0,0.2569544]
[1753360532622,1.56702072,118490.0,118480.0,0.2733544]
[1753360533117,1.28509013,118490.0,118480.0,0.2959044]
[1753360533816,0.92429013,118490.0,118480.0,0.2959044]
[1753360534016,1.20622072,118490.0,118480.0,0.04402]
[1753360534215,0.1687287,118470.0,118460.0,0.5545415]
[1753360534419,0.8126203,118470.0,118460.0,0.10924]
[1753360534608,0.8126203,118470.0,118460.0,0.07505]
[1753360534609,0.86068971,118470.0,118460.0,0.07505]
[1753360534810,1.26865119,118470.0,118460.0,0.025]
[1753360535008,0.1687572,118450.0,118440.0,0.03949]
[1753360535213,0.7942772,118450.0,118440.0,0.03949]
[1753360535519,1.30195078,118450.0,118440.0,0.08424]
[1753360535717,1.19888137,118450.0,118440.0,0.08424]
[1753360536119,0.91695078,118450.0,118440.0,0.2919614]
[1753360536319,1.19888137,118450.0,118440.0,0.2919614]
[1753360536716,0.1687714,118440.0,118430.0,0.02372]
[1753360536922,0.45070199,118440.0,118430.0,0.03959]
[1753360537123,0.5295714,118440.0,118430.0,0.03959]
[1753360537316,0.59671266,118440.0,118430.0,0.02372]
[1753360537517,1.25879485,118440.0,118430.0,0.02372]
[1753360537721,0.92879485,118440.0,118430.0,0.02372]
[1753360538016,1.23879485,118440.0,118430.0,0.02372]
[1753360538220,1.36561952,118440.0,118430.0,0.0001]
[1753360538810,1.36261952,118440.0,118430.0,0.0001]
[1753360539829,1.36261952,118440.0,118430.0,0.0021]
[1753360540121,1.03169834,118440.0,118430.0,1e-08]
[1753360540627,1.36261952,118440.0,118430.0,1e-08]
[1753360540829,1.36361952,118440.0,118430.0,0.00100001]
[1753360541234,2.53109952,118440.0,118430.0,0.00100001]
[1753360541523,2.53009952,118440.0,118430.0,1e-08]
[1753360541726,3.17121952,118440.0,118430.0,0.00100001]
[1753360542417,3.17121952,118440.0,118430.0,0.001]
[1753360542616,2.53709952,118440.0,118430.0,0.001]
[1753360542820,3.17361952,118440.0,118430.0,0.001]
[1753360543418,2.53709952,118440.0,118430.0,0.001]
[1753360543622,3.17337952,118440.0,118430.0,0.02462]
[1753360544029,2.84245834,118440.0,118430.0,0.001]
[1753360544230,3.17337952,118440.0,118430.0,0.001]
[1753360544429,2.84245834,118440.0,118430.0,0.001]
[1753360544626,3.17337952,118440.0,118430.0,0.001]
[1753360545729,2.84245834,118440.0,118430.0,0.001]
[1753360545929,3.17337952,118440.0,118430.0,0.001]
[1753360546123,0.1687999,118420.0,118410.0,0.05005]
[1753360546328,0.8279599,118420.0,118410.0,0.05005]
[1753360546528,0.82912091,118420.0,118410.0,0.05005]
[1753360546724,0.80912091,118420.0,118410.0,0.05005]
[1753360546930,0.82912091,118420.0,118410.0,0.2188641]
[1753360547420,1.17012091,118420.0,118410.0,0.05705]
[1753360547827,0.83012091,118420.0,118410.0,0.2258644]
[1753360548027,1.13012091,118420.0,118410.0,0.05705]
[1753360548221,0.83012091,118420.0,118410.0,0.05605]
[1753360548419,0.81112091,118420.0,118410.0,0.2248644]
[1753360548624,0.83112091,118420.0,118410.0,0.2248644]
[1753360548928,1.14112091,118420.0,118410.0,0.2089944]
[1753360549123,1.14112091,118420.0,118410.0,0.04018]
[1753360549335,1.47204209,118420.0,118410.0,0.02962]
[1753360550034,1.47204209,118420.0,118410.0,0.1984343]
[1753360550230,1.47204209,118420.0,118410.0,0.02962]
[1753360550531,1.14112091,118420.0,118410.0,0.04549]
[1753360550724,1.47204209,118420.0,118410.0,0.04549]
[1753360550928,1.47204209,118420.0,118410.0,0.2143044]
[1753360551430,1.14112091,118420.0,118410.0,0.2143044]
[1753360551633,0.17196111,118420.0,118410.0,0.2590544]
[1753360551832,0.64084101,118420.0,118410.0,0.62892558]
[1753360552030,0.64072101,118420.0,118410.0,0.96892558]
[1753360552427,0.64052101,118420.0,118410.0,0.62892558]
[1753360552630,0.64052101,118420.0,118410.0,0.2980044]
[1753360552829,0.80932111,118420.0,118410.0,0.2980044]
[1753360553330,0.64052101,118420.0,118410.0,0.6588044]
[1753360554033,0.80932111,118420.0,118410.0,0.6588044]
[1753360554936,0.64052101,118420.0,118410.0,0.6588044]
[1753360556332,0.80932111,118420.0,118410.0,0.6588044]
[1753360557530,0.80932111,118420.0,118410.0,0.48999]
[1753360557735,0.80932111,118420.0,118410.0,0.6588043]
[1753360558442,1.15932111,118420.0,118410.0,0.6588043]
[1753360558644,0.80932111,118420.0,118410.0,0.6588043]
[1753360559336,0.51196111,118420.0,118410.0,0.6588043]
[1753360559545,0.80732111,118420.0,118410.0,0.94126274]
[1753360560134,0.00316101,118420.0,118410.0,1.31126274]
[1753360560439,0.68544714,118460.0,118430.0,0.04786]
[1753360560743,1.08059017,118460.0,118450.0,0.57316574]
[1753360561042,1.44487017,118460.0,118450.0,0.12195]
[1753360561243,1.71487017,118460.0,118450.0,0.2907073]
[1753360561445,2.05732861,118460.0,118450.0,0.2907073]
[1753360561835,1.77687017,118460.0,118450.0,0.2907073]
[1753360562139,2.05932861,118460.0,118450.0,0.2907073]
[1753360562641,1.77687017,118460.0,118450.0,0.2907073]
[1753360562839,2.05932861,118460.0,118450.0,0.12195]
[1753360563043,1.77687017,118460.0,118450.0,0.12195]
[1753360563245,2.10768489,118460.0,118450.0,0.2907073]
[1753360563440,2.10968489,118460.0,118450.0,0.2917073]
[1753360564041,2.10868489,118460.0,118450.0,0.2917073]
[1753360564343,1.78087017,118460.0,118450.0,0.2917073]
[1753360564544,2.06949619,118460.0,118450.0,0.2917073]
[1753360564744,2.06949619,118460.0,118450.0,0.12295]
[1753360565446,1.73868147,118460.0,118450.0,0.12295]
[1753360565638,1.35984147,118460.0,118450.0,0.2917073]
[1753360565839,1.10521619,118460.0,118450.0,0.2917073]
[1753360566043,1.69984147,118460.0,118450.0,0.2917073]
[1753360566248,2.03065619,118460.0,118450.0,0.12295]
[1753360566743,1.66985619,118460.0,118450.0,0.12295]
[1753360566942,1.66985619,118460.0,118450.0,0.2917073]
[1753360567244,2.03065619,118460.0,118450.0,0.12295]
[1753360567446,2.03053619,118460.0,118450.0,0.12295]
[1753360567844,1.69972147,118460.0,118450.0,0.12295]
[1753360568043,2.03053619,118460.0,118450.0,0.12295]
[1753360569642,1.69832147,118460.0,118450.0,0.2917073]
[1753360569843,2.02913619,118460.0,118450.0,0.2917073]
[1753360570039,1.66833619,118460.0,118450.0,0.12295]
[1753360570345,2.02913619,118460.0,118450.0,0.12295]
[1753360570842,2.02897619,118460.0,118450.0,0.12295]
[1753360571544,2.02889619,118460.0,118450.0,0.08885]
[1753360572547,2.02865619,118460.0,118450.0,0.08885]
[1753360573349,2.02865619,118460.0,118450.0,0.03545]
[1753360574548,2.02865619,118460.0,118450.0,0.02421]
[1753360574753,2.02865619,118460.0,118450.0,0.001]
[1753360575145,1.69784147,118460.0,118450.0,0.001]
[1753360575344,2.02865619,118460.0,118450.0,0.001]
[1753360575852,2.02865619,118460.0,118450.0,0.02421]
[1753360576650,2.02725619,118460.0,118450.0,0.02421]
[1753360578453,1.06440147,118460.0,118450.0,0.1929673]
[1753360578651,1.69604147,118460.0,118450.0,0.2917073]
[1753360578956,0.84393757,118460.0,118450.0,0.98332202]
[1753360579250,0.84393757,118460.0,118450.0,1.32332202]
[1753360580155,0.84393757,118460.0,118450.0,1.35332202]
[1753360580454,0.21265757,118460.0,118450.0,1.35332202]
[1753360580647,0.63716,118460.0,118450.0,1.37228389]
[1753360581956,0.006,118460.0,118450.0,1.00228389]
[1753360582458,0.63688,118460.0,118450.0,1.35228389]
[1753360585153,0.85389353,118480.0,118470.0,0.2906788]
[1753360585353,0.64912415,118480.0,118470.0,1.28366723]
[1753360585555,0.14673265,118480.0,118470.0,1.31366723]
[1753360585752,0.01964415,118480.0,118470.0,1.31366723]
[1753360586054,2.10574333,118510.0,118500.0,0.1799261]
[1753360586258,3.03281223,118510.0,118500.0,0.2906361]
[1753360586450,3.15905144,118510.0,118500.0,0.12195]
[1753360586650,3.15905144,118510.0,118500.0,0.2906361]
[1753360586651,3.22675249,118510.0,118500.0,0.2906361]
[1753360586846,2.26303921,118510.0,118500.0,0.2906361]
[1753360587052,2.71389954,118510.0,118500.0,0.2906361]
[1753360587252,0.91709954,118510.0,118500.0,0.2916361]
[1753360587557,0.79586033,118510.0,118500.0,0.2916361]
[1753360587758,1.1423519,118510.0,118500.0,0.2916361]
[1753360588057,1.42454033,118510.0,118500.0,0.2916361]
[1753360590057,0.65368,118510.0,118500.0,0.93462453]
[1753360590254,0.65368,118510.0,118500.0,0.94343869]
[1753360590454,0.63568,118510.0,118500.0,1.31343869]
[1753360590650,0.6342,118510.0,118500.0,1.31343869]
[1753360591053,0.6342,118510.0,118500.0,1.29343869]
[1753360591246,0.6342,118510.0,118500.0,1.32343869]
[1753360591756,0.6322,118510.0,118500.0,0.94343869]
[1753360592260,0.6272,118510.0,118500.0,0.93462453]
[1753360592659,0.6282,118510.0,118500.0,0.93662453]
[1753360593359,0.6282,118510.0,118500.0,0.94570873]
[1753360593753,0.6282,118510.0,118500.0,1.29570873]
[1753360594155,0.6282,118510.0,118500.0,0.6635203]
[1753360594359,0.001,118510.0,118500.0,1.31662453]
[1753360594962,0.001,118510.0,118500.0,0.93662453]
[1753360595950,0.001,118510.0,118500.0,1.27662453]
[1753360596156,0.001,118510.0,118500.0,1.28662453]
[1753360597163,0.001,118510.0,118500.0,1.29573048]
[1753360597463,0.001,118510.0,118500.0,0.94573048]
[1753360597662,0.001,118510.0,118500.0,1.28573048]
[1753360599156,0.001,118510.0,118500.0,0.94573048]
[1753360599352,0.001,118510.0,118500.0,1.31573048]
[1753360601166,0.001,118510.0,118500.0,0.93662453]
[1753360601360,0.45186033,118510.0,118500.0,0.6544361]
[1753360601769,0.80186033,118510.0,118500.0,0.69975669]
[1753360601964,0.80186033,118510.0,118500.0,0.6544361]
[1753360602362,0.80186033,118510.0,118500.0,0.05423]
[1753360602563,1.28859841,118510.0,118500.0,0.003]
[1753360603167,1.33705833,118510.0,118500.0,0.003]
[1753360605168,1.00640998,118510.0,118500.0,0.003]
[1753360605365,1.33705833,118510.0,118500.0,0.02642]
[1753360606770,1.00640998,118510.0,118500.0,0.003]
[1753360606972,1.33705833,118510.0,118500.0,0.003]
[1753360609571,1.00640998,118510.0,118500.0,0.02642]
[1753360609775,1.33705833,118510.0,118500.0,0.02642]
[1753360611374,1.00640998,118510.0,118500.0,0.02642]
[1753360611570,1.33705833,118510.0,118500.0,0.02642]
[1753360613175,1.33705833,118510.0,118500.0,0.07174059]
[1753360614372,1.00640998,118510.0,118500.0,0.07174059]
[1753360614573,1.33705833,118510.0,118500.0,0.07174059]
[1753360615973,1.35462959,118510.0,118500.0,0.02642]
[1753360618378,1.35462959,118510.0,118500.0,0.07174059]
[1753360620279,1.02398124,118510.0,118500.0,0.07174059]
[1753360620681,1.35462959,118510.0,118500.0,0.09830059]
[1753360621182,1.35462959,118510.0,118500.0,0.08254059]
[1753360621676,0.1687004,118490.0,118480.0,0.08470746]
[1753360621868,0.1687146,118480.0,118470.0,0.12962475]
[1753360622076,1.30817422,118480.0,118470.0,0.04338729]
[1753360622374,0.1687288,118470.0,118460.0,0.31433996]
[1753360622573,0.1687288,118470.0,118460.0,0.14559746]
[1753360622574,1.47849715,118470.0,118460.0,0.14559746]
[1753360622776,1.96634065,118470.0,118460.0,0.02428]
[1753360623076,0.1687431,118460.0,118450.0,0.07618746]
[1753360623280,0.82311323,118460.0,118450.0,0.10046746]
[1753360623480,0.44311323,118460.0,118450.0,0.2087973]
[1753360623684,0.78311323,118460.0,118450.0,0.2349373]
[1753360623883,0.78311323,118460.0,118450.0,0.2922473]
[1753360624080,0.1607431,118460.0,118450.0,0.2922473]
[1753360624382,1.1486581,118470.0,118460.0,0.292233]
[1753360624383,0.2129195,118470.0,118460.0,0.292233]
[1753360624583,0.8748627,118470.0,118460.0,0.292233]
[1753360624883,1.63355465,118470.0,118460.0,0.292233]
[1753360625074,1.28755465,118470.0,118460.0,0.293233]
[1753360625270,1.65755465,118470.0,118460.0,0.293233]
[1753360625481,1.59755465,118470.0,118460.0,0.293233]
[1753360625682,1.59955465,118470.0,118460.0,0.293233]
[1753360626882,1.59755465,118470.0,118460.0,0.293233]
[1753360627278,1.33286121,118470.0,118460.0,0.293233]
[1753360627478,1.31518452,118470.0,118460.0,0.293233]
[1753360627876,0.96300132,118470.0,118460.0,0.293233]
[1753360628081,0.96300132,118470.0,118460.0,0.655033]
[1753360628082,0.75608182,118470.0,118460.0,0.655033]
[1753360630284,0.75608182,118470.0,118460.0,0.67397545]
[1753360630885,0.92481062,118470.0,118460.0,0.67397545]
[1753360631685,0.92321062,118470.0,118460.0,0.67397545]
[1753360631884,1.27321062,118470.0,118460.0,0.67397545]
[1753360632085,0.92321062,118470.0,118460.0,0.67397545]
[1753360637891,0.62816,118470.0,118460.0,1.00474517]
[1753360639699,0.01,118470.0,118460.0,1.36474517]
[1753360639889,0.62556,118470.0,118460.0,1.36474517]
[1753360640090,0.01,118470.0,118460.0,1.36474517]
[1753360640290,0.01,118470.0,118460.0,1.42517263]
[1753360642494,0.1687128,118490.0,118480.0,0.1687146]
[1753360642691,0.7830328,118490.0,118480.0,1.02920893]
[1753360642891,0.61432,118490.0,118480.0,0.98377432]
[1753360643204,0.7830204,118490.0,118480.0,0.6530046]
[1753360643392,0.7830204,118490.0,118480.0,0.6984419]
[1753360643595,0.7830204,118490.0,118480.0,0.6530046]
[1753360643794,0.7890204,118490.0,118480.0,0.6540046]
[1753360644089,0.1837004,118490.0,118480.0,0.6550046]
[1753360644296,0.7980204,118490.0,118480.0,0.6550046]
[1753360644703,0.7920204,118490.0,118480.0,0.6540046]
[1753360644896,0.7960204,118490.0,118480.0,0.6550046]
[1753360646107,0.7870204,118490.0,118480.0,0.6540046]
[1753360646301,0.7840204,118490.0,118480.0,0.6560046]
[1753360646811,0.7840204,118490.0,118480.0,0.67456965]
[1753360649407,0.7840204,118490.0,118480.0,0.95667434]
[1753360651208,0.1697004,118490.0,118480.0,0.95667434]
[1753360651599,0.7849804,118490.0,118480.0,0.95667434]
[1753360651901,0.7849804,118490.0,118480.0,0.67456965]
[1753360652108,0.7849804,118490.0,118480.0,0.95667434]
[1753360655402,0.1697004,118490.0,118480.0,0.95667434]
[1753360655610,0.7847804,118490.0,118480.0,0.95667434]
[1753360655910,1.06688509,118490.0,118480.0,0.67456965]
[1753360656096,0.7847804,118490.0,118480.0,0.67456965]
[1753360656302,1.06688509,118490.0,118480.0,0.67456965]
[1753360656709,1.40688509,118490.0,118480.0,0.67456965]
[1753360657011,1.44688509,118490.0,118480.0,0.67456965]
[1753360658203,1.41688509,118490.0,118480.0,0.67456965]
[1753360658511,1.06688509,118490.0,118480.0,0.67456965]
[1753360658704,1.44688509,118490.0,118480.0,0.67456965]
[1753360659111,1.06688509,118490.0,118480.0,0.67456965]
[1753360659613,0.7883404,118490.0,118480.0,0.67456965]
[1753360660313,1.07044509,118490.0,118480.0,0.67456965]
[1753360660514,1.07044509,118490.0,118480.0,0.31376965]
[1753360660716,1.44044509,118490.0,118480.0,0.14505505]
[1753360661511,0.82180509,118490.0,118480.0,0.14505505]
[1753360661715,0.7883004,118490.0,118480.0,0.27943965]
[1753360662014,1.07040509,118490.0,118480.0,0.31142965]
[1753360662211,1.40040509,118490.0,118480.0,0.31142965]
[1753360663015,1.1183004,118490.0,118480.0,0.31142965]
[1753360663417,1.40040509,118490.0,118480.0,0.31142965]
[1753360664219,1.07040509,118490.0,118480.0,0.31142965]
[1753360664421,1.39040509,118490.0,118480.0,0.31142965]
[1753360665625,1.07040509,118490.0,118480.0,0.31142965]
[1753360665825,1.41040509,118490.0,118480.0,0.31142965]
[1753360666022,1.41040509,118490.0,118480.0,0.35694866]